bitfinex/quotes_ETHUSD_20220311
["timestamp","ask_amount","ask_price","bid_price","bid_amount"]
[1646960684076,2.8304693,2574.2,2574.1,0.00256352]
[1646960684277,0.0296,2574.1,2573.2,0.07184044]
[1646960684484,0.04509324,2573.5,2573.0,0.0465394]
[1646960684679,0.04509324,2573.5,2572.7,0.03979252]
[1646960684680,2.81805694,2573.1,2572.7,0.03979252]
[1646960684879,2.81805694,2572.8,2572.7,0.03979252]
[1646960685080,0.7233,2572.8,2572.5,1.01831052]
[1646960685478,2.81805694,2572.6,2572.5,1.01831052]
[1646960685680,2.81805694,2572.6,2572.0,3.20836604]
[1646960685681,0.04657522,2572.4,2572.0,3.20836604]
[1646960685930,0.04657522,2572.4,2572.0,1.96426604]
[1646960685931,2.81805694,2572.1,2572.0,1.96426604]
[1646960686130,2.81805694,2572.1,2572.0,6.604e-05]
[1646960686131,7.71735694,2572.1,2572.0,6.604e-05]
[1646960686329,7.71735694,2572.1,2571.3,0.028991]
[1646960686330,3.85271674,2572.0,2571.3,0.028991]
[1646960686525,2.82874477,2571.6,2571.5,9.6e-06]
[1646960686727,2.82874477,2571.6,2570.3,0.42934958]
[1646960686728,0.12881042,2571.5,2570.3,0.42934958]
[1646960686926,2.76805694,2571.3,2570.3,0.42934958]
[1646960687139,0.50402074,2571.3,2571.1,0.92610044]
[1646960687333,3.19875694,2571.4,2571.1,0.92610044]
[1646960687334,0.4307,2571.4,2571.1,0.92610044]
[1646960687724,0.4307,2571.4,2570.5,0.0496307]
[1646960687929,3.962,2571.3,2570.5,0.0496307]
[1646960688125,3.962,2571.3,2570.7,0.0264991]
[1646960688126,2.81119512,2571.2,2570.7,0.0264991]
[1646960688328,0.50943024,2571.1,2570.7,0.10838383]
[1646960688524,0.50787154,2571.1,2570.7,0.10838383]
[1646960688729,0.05050069,2571.0,2570.7,0.10838383]
[1646960689128,2.76805694,2570.9,2570.7,0.10838383]
[1646960689328,3.5427892,2571.0,2570.9,2.5]
[1646960689670,3.27226572,2571.0,2570.9,2.5]
[1646960689865,0.50420878,2571.0,2570.9,2.5]
[1646960690468,2.76805694,2571.1,2570.9,2.5]
[1646960690667,0.25,2571.9,2570.9,2.5]
[1646960690668,0.04844933,2571.7,2570.9,2.5]
[1646960690871,2.76805694,2572.0,2571.7,0.90799816]
[1646960691270,0.04888198,2572.2,2571.8,2.45314203]
[1646960691472,2.76805694,2571.9,2571.8,2.45314203]
[1646960691871,0.04888198,2572.2,2571.8,2.45314203]
[1646960692180,0.01399222,2572.3,2571.8,0.0065758]
[1646960692373,0.01399222,2572.3,2571.9,0.91551537]
[1646960692676,2.78183734,2572.5,2572.2,0.97211]
[1646960692677,0.0137804,2572.5,2572.2,0.97211]
[1646960692877,0.04772137,2573.8,2573.3,0.8342068]
[1646960693071,0.04772137,2573.8,2573.3,0.8407826]
[1646960693272,0.1942,2574.1,2573.3,0.0065758]
[1646960693273,2.81366885,2574.0,2573.3,0.0065758]
[1646960693520,2.76805694,2573.4,2573.3,0.0065758]
[1646960693920,2.8203865,2573.4,2573.3,0.0065758]
[1646960694119,2.76805694,2573.4,2573.3,0.0065758]
[1646960694320,6.26805694,2573.4,2573.3,7.58e-05]
[1646960694522,0.14596004,2572.5,2572.2,0.00096]
[1646960694729,2.76805694,2572.3,2572.2,0.0131516]
[1646960695021,2.76805694,2572.3,2572.1,0.3512516]
[1646960695022,0.05281364,2572.2,2572.1,0.3512516]
[1646960695221,0.51481364,2572.2,2572.1,0.3512516]
[1646960696225,0.51481364,2572.2,2571.1,0.00096]
[1646960696427,2.76805694,2571.7,2571.0,2.45314203]
[1646960696627,2.76805694,2571.4,2571.0,2.45314203]
[1646960697272,2.76805694,2571.3,2571.0,2.45314203]
[1646960697671,0.04353951,2571.8,2571.0,2.45314203]
[1646960697672,2.76805694,2571.7,2571.0,2.45314203]
[1646960697869,0.462,2571.9,2571.1,0.00357947]
[1646960698075,2.76805694,2571.6,2571.1,0.00357947]
[1646960698277,2.76805694,2571.9,2571.1,0.00357947]
[1646960698475,3.5,2572.4,2571.1,0.00357947]
[1646960698476,3.5,2572.2,2571.1,0.00357947]
[1646960698675,0.28416,2572.5,2571.1,0.00357947]
[1646960698676,2.76805694,2571.7,2571.1,0.00453947]
[1646960698875,2.76805694,2571.7,2571.0,2.45314203]
[1646960699074,2.76805694,2571.7,2571.4,0.00357905]
[1646960699274,2.76805694,2571.7,2571.5,1.06863709]
[1646960699676,2.76805694,2571.7,2571.4,0.00357905]
[1646960700075,2.76805694,2572.2,2571.0,3.42577203]
[1646960700276,0.1943,2572.4,2571.5,0.00346478]
[1646960700277,2.76805694,2572.0,2571.5,0.00346478]
[1646960700482,3.6943,2572.4,2571.5,0.00346478]
[1646960700483,2.76805694,2571.9,2571.5,0.00346478]
[1646960701133,3.5,2572.3,2571.3,0.96020038]
[1646960701332,0.1943,2572.4,2571.3,0.96020038]
[1646960701534,2.76805694,2572.3,2571.7,0.98413101]
[1646960701732,0.1943,2572.2,2571.7,0.98413101]
[1646960701936,0.33687556,2572.5,2571.7,0.98413101]
[1646960701937,0.1943,2572.4,2571.7,0.98413101]
[1646960702134,0.1943,2572.4,2572.1,0.93364743]
[1646960702335,0.14596004,2572.5,2572.1,0.93364743]
[1646960703837,0.14596004,2572.5,2572.2,0.00403452]
[1646960704764,0.14596004,2572.5,2572.1,0.93364743]
[1646960704966,0.14596004,2572.5,2572.1,1.23364743]
[1646960705170,2.96235694,2573.1,2572.8,1.13158215]
[1646960705171,0.00423877,2572.9,2572.8,1.13158215]
[1646960705572,3.877e-05,2572.9,2572.8,1.13158215]
[1646960705770,3.877e-05,2572.9,2572.8,0.23194306]
[1646960706174,3.5485606,2574.8,2572.9,0.00096]
[1646960706377,2.76805694,2574.9,2573.3,0.23194306]
[1646960706378,1.0,2574.3,2573.3,0.23194306]
[1646960706573,1.0,2574.3,2573.4,0.00096]
[1646960706773,0.1942,2574.8,2574.2,1.13696861]
[1646960706973,0.0129499,2575.4,2573.5,1.3549298]
[1646960706974,2.76805694,2574.4,2573.5,1.3549298]
[1646960707176,2.76805694,2574.4,2573.0,3.5]
[1646960707177,0.25,2574.5,2573.6,0.00096]
[1646960707375,0.712,2575.2,2573.3,0.00096]
[1646960707376,2.76805694,2573.8,2573.3,0.00096]
[1646960707679,2.76805694,2573.8,2573.0,0.00096]
[1646960707872,2.61805694,2573.8,2573.3,1.1105472]
[1646960708073,2.61805694,2573.9,2573.3,0.38387333]
[1646960708272,3.54321961,2574.4,2573.3,0.38387333]
[1646960708273,0.3,2574.0,2573.3,0.38387333]
[1646960708526,2.61805694,2574.1,2573.3,0.68387333]
[1646960708723,0.00403702,2573.7,2573.3,0.68387333]
[1646960709126,0.00403702,2573.7,2573.0,0.00096]
[1646960709323,0.00403702,2573.7,2572.8,2.076]
[1646960709523,2.61805694,2573.5,2572.8,2.076]
[1646960709723,2.61805694,2573.5,2572.7,1.94382]
[1646960709925,2.62209406,2573.5,2572.7,2.24719093]
[1646960710136,2.61805694,2573.1,2572.7,0.00337093]
[1646960710338,2.61805694,2572.8,2572.7,0.00337093]
[1646960710927,6.11805694,2572.8,2571.9,0.00096]
[1646960711129,6.11805694,2572.8,2571.8,1.0]
[1646960711130,2.61805694,2572.1,2571.6,0.00096]
[1646960711329,2.61805694,2572.1,2571.4,0.99512605]
[1646960711529,3.5,2572.6,2571.4,0.99512605]
[1646960711530,2.61805694,2572.4,2571.4,0.99512605]
[1646960711829,0.97271,2572.4,2571.2,0.00096]
[1646960712036,2.61805694,2571.9,2571.0,0.01328057]
[1646960712267,2.61805694,2572.1,2571.0,0.01232057]
[1646960712469,0.97271,2572.4,2570.8,2.8426526]
[1646960712666,3.5,2572.3,2570.8,2.8426526]
[1646960712870,2.61805694,2572.3,2571.3,1.059571]
[1646960713367,2.61805694,2572.6,2571.7,3.40854116]
[1646960713678,0.55,2573.0,2572.1,0.89084384]
[1646960713679,0.00302485,2573.0,2572.1,0.89084384]
[1646960713876,3.8,2572.9,2571.6,0.24224249]
[1646960714083,2.61805694,2571.7,2571.6,0.24224249]
[1646960714273,2.61805694,2571.7,2571.5,0.007]
[1646960714274,6.31245694,2571.7,2571.5,0.007]
[1646960714473,3.54982077,2571.6,2570.7,0.0063799]
[1646960714669,2.61805694,2570.8,2570.7,0.0063799]
[1646960714876,3.35265694,2570.8,2570.7,0.0063799]
[1646960715666,3.35265694,2570.8,2570.7,0.02235366]
[1646960715933,3.3,2570.7,2570.6,0.00127193]
[1646960716131,3.84135694,2570.8,2570.7,0.0127598]
[1646960716532,2.86805694,2570.8,2570.7,0.0127598]
[1646960716932,2.86805694,2570.8,2570.4,0.0206725]
[1646960717334,0.462,2570.7,2570.6,2.409e-05]
[1646960717533,0.462,2570.7,2570.4,0.0206725]
[1646960717534,3.8,2570.6,2570.4,0.0206725]
[1646960717732,3.12207505,2570.5,2570.4,0.0206725]
[1646960718332,4.05364694,2570.5,2570.4,0.0206725]
[1646960719131,5.10444872,2570.5,2570.4,0.0206725]
[1646960719533,3.8,2570.4,2570.2,0.017234]
[1646960719778,5.8,2570.4,2570.3,0.00125754]
[1646960719978,7.88005694,2570.4,2570.3,5.754e-05]
[1646960720177,0.11164311,2570.2,2569.9,0.04762538]
[1646960720375,1.0,2570.0,2569.9,0.04762538]
[1646960720677,1.66912538,2570.0,2569.9,0.02834564]
[1646960720873,0.01985436,2569.9,2569.7,0.01682288]
[1646960721081,3.7,2569.7,2569.6,0.0194309]
[1646960721383,1.6565,2569.7,2569.6,0.0194309]
[1646960721578,3.8,2569.6,2569.5,0.0194705]
[1646960721880,5.4565,2569.6,2569.5,7.05e-05]
[1646960722178,6.4065,2569.6,2569.5,0.04440753]
[1646960722379,6.4065,2569.6,2569.4,5.629e-05]
[1646960722581,6.4065,2569.6,2568.9,0.04144397]
[1646960722582,1.5,2569.4,2568.9,0.04144397]
[1646960722780,0.0129342,2569.0,2568.9,6.849e-05]
[1646960722981,3.8,2568.9,2568.5,0.06226908]
[1646960723183,0.462,2568.8,2568.5,0.06226908]
[1646960723617,0.462,2568.8,2568.2,0.04471104]
[1646960723618,1.0,2568.5,2568.2,0.04471104]
[1646960723817,0.97457,2568.3,2568.2,0.04471104]
[1646960724018,1.43657,2568.3,2568.2,0.00842592]
[1646960724220,0.25,2568.6,2568.2,1.10306767]
[1646960724426,0.25,2568.6,2568.2,0.96991951]
[1646960724625,0.01234761,2569.7,2569.1,0.90499972]
[1646960724826,0.6565,2570.2,2569.6,1.1232904]
[1646960725025,0.462,2570.2,2569.6,1.1232904]
[1646960725228,0.462,2570.2,2570.0,0.93786204]
[1646960725424,0.25,2570.3,2570.0,0.93786204]
[1646960725829,0.25,2570.3,2569.9,2.5]
[1646960726027,0.25,2570.3,2570.2,2.5]
[1646960726333,0.01256549,2571.4,2570.2,2.5]
[1646960726334,0.9065,2571.2,2570.2,2.5]
[1646960726532,1.0,2570.3,2570.2,2.5]
[1646960726730,1.0,2570.3,2570.2,3.47298]
[1646960726931,1.0,2570.3,2570.2,4.5460468]
[1646960727174,0.00426202,2570.4,2570.3,4.88062513]
[1646960727373,0.00426202,2570.4,2570.3,5.18062513]
[1646960727579,0.00426202,2570.4,2570.3,1.9219]
[1646960727978,0.25,2570.6,2570.2,2.5]
[1646960728177,0.97648201,2570.5,2570.2,2.5]
[1646960728384,0.00304201,2570.5,2570.2,2.5]
[1646960728981,1.94683,2570.8,2570.2,2.5]
[1646960729182,0.9734,2570.6,2570.2,2.5]
[1646960729980,0.462,2570.5,2570.2,2.5]
[1646960730181,1.94713,2570.4,2570.2,2.5]
[1646960730382,0.6565,2570.3,2570.2,2.5]
[1646960730584,0.6565,2570.3,2569.3,0.00096]
[1646960730585,3.2,2570.2,2569.3,0.00096]
[1646960730783,3.2,2570.2,2568.9,0.00096]
[1646960730784,0.97373,2569.9,2568.9,0.00096]
[1646960731054,0.6988689,2569.8,2568.8,0.01685184]
[1646960731235,0.25,2569.5,2568.8,0.01685184]
[1646960731431,1.94826,2569.3,2568.8,0.01685184]
[1646960731633,0.04291047,2569.1,2568.8,0.01685184]
[1646960731835,0.04291047,2569.1,2568.8,0.03370368]
[1646960731836,3.7,2568.9,2568.8,0.03370368]
[1646960732034,1.6,2568.8,2568.2,0.00096]
[1646960732231,1.6,2568.8,2568.0,8.07167148]
[1646960732232,0.6565,2568.7,2568.0,8.07167148]
[1646960732431,1.0,2568.5,2568.0,8.07167148]
[1646960732732,0.04569722,2568.3,2568.0,8.07167148]
[1646960732933,0.04569722,2568.3,2568.2,0.00409015]
[1646960733232,1.43631,2568.3,2568.2,0.00409015]
[1646960733432,0.05199596,2568.2,2568.0,8.02890366]
[1646960733636,0.24649596,2568.2,2568.0,8.02890366]
[1646960733832,0.24649596,2568.2,2568.1,0.05133851]
[1646960734035,0.05199596,2568.2,2568.1,0.05133851]
[1646960734434,1.86285357,2568.1,2568.0,8.02890366]
[1646960734669,0.6567,2568.1,2568.0,6.31517602]
[1646960735280,0.462,2568.1,2568.0,6.31517602]
[1646960736677,2.923105,2568.6,2568.0,6.31517602]
[1646960736678,1.16883,2568.6,2568.0,6.31517602]
[1646960736981,0.3018108,2568.8,2568.0,6.31517602]
[1646960737174,2.61805694,2568.1,2568.0,6.31517602]
[1646960737379,2.61805694,2568.1,2568.0,7.17314604]
[1646960738177,2.61805694,2568.1,2568.0,6.31517602]
[1646960738421,2.61805694,2568.1,2568.0,6.31346033]
[1646960738422,2.66126218,2568.1,2568.0,6.31346033]
[1646960739028,2.61805694,2568.1,2568.0,6.31346033]
[1646960739229,2.61805694,2568.1,2568.0,7.35212376]
[1646960740231,0.25,2568.8,2568.5,0.87954155]
[1646960740429,0.462,2569.4,2568.1,3.4]
[1646960740430,0.0463097,2569.3,2568.9,3.33977649]
[1646960740632,1.01556438,2569.6,2569.4,0.99095905]
[1646960740633,0.86654034,2569.6,2569.4,0.99095905]
[1646960740830,0.00426088,2569.7,2569.4,0.99095905]
[1646960740831,0.25426088,2569.7,2569.4,0.99095905]
[1646960741226,0.05189399,2570.2,2569.4,0.99095905]
[1646960741434,0.05189399,2570.2,2569.9,2.5]
[1646960741728,0.25,2570.4,2569.9,2.5]
[1646960741926,0.25,2570.4,2570.2,2.5]
[1646960742177,0.1945,2570.9,2570.3,0.08374794]
[1646960742580,0.05266114,2571.1,2570.8,1.04918745]
[1646960742879,0.02068167,2571.3,2570.9,0.08423785]
[1646960743077,0.02068167,2571.3,2570.5,0.09046694]
[1646960743678,0.27068167,2571.3,2570.5,0.04650248]
[1646960743875,0.02068167,2571.3,2571.0,1.11006854]
[1646960744080,0.02068167,2571.3,2570.7,0.06906829]
[1646960744282,0.02068167,2571.3,2570.4,1.9763]
[1646960744479,0.27068167,2571.3,2570.4,1.9763]
[1646960744680,1.99744119,2571.1,2570.4,1.9763]
[1646960744883,0.04586151,2570.9,2569.4,0.07491703]
[1646960745078,1.0,2570.4,2569.2,0.00096]
[1646960745277,4.20648903,2570.3,2569.5,1.09193626]
[1646960745479,0.70648903,2570.3,2569.6,0.00096]
[1646960745680,0.04998903,2570.3,2569.9,1.08341107]
[1646960745918,1.03020782,2570.6,2569.9,1.08341107]
[1646960746323,1.03020782,2570.6,2570.4,0.85176943]
[1646960746527,0.25,2570.7,2570.4,0.85176943]
[1646960746925,0.02068167,2571.3,2570.5,0.07466431]
[1646960747129,0.02068167,2571.3,2571.1,1.05154297]
[1646960747527,0.02068167,2571.3,2571.1,1.12399111]
[1646960747725,0.02068167,2571.3,2571.2,0.0801388]
[1646960747930,0.02068167,2571.3,2571.1,1.05154297]
[1646960748126,0.02068167,2571.3,2570.7,0.06815655]
[1646960748325,0.02068167,2571.3,2570.7,0.06719655]
[1646960748629,0.02068167,2571.3,2570.7,1.04003655]
[1646960748828,0.00303939,2571.1,2570.9,0.07828329]
[1646960749028,0.00312106,2571.3,2571.1,4.1833]
[1646960749232,0.1943,2572.4,2572.3,1.037059]
[1646960749430,1.07287654,2572.2,2571.3,0.07198049]
[1646960749691,1.07287654,2572.2,2571.3,1.39865743]
[1646960749884,1.07287654,2572.2,2572.0,0.07796277]
[1646960750284,0.25,2572.1,2572.0,0.07796277]
[1646960750680,0.25,2572.1,2571.6,0.06997584]
[1646960750882,0.25,2572.1,2571.6,0.07117573]
[1646960751084,0.25,2572.1,2571.3,0.4620118]
[1646960751483,0.25,2572.1,2571.9,0.83364517]
[1646960751685,1.22243,2572.1,2571.9,0.83364517]
[1646960751888,1.22243,2572.1,2572.0,0.06741831]
[1646960752184,1.22243,2572.1,2571.4,0.00096]
[1646960752185,0.25,2572.1,2571.4,0.08037883]
[1646960752384,0.25,2572.1,2571.4,0.07941883]
[1646960752790,3.75,2572.1,2571.4,0.07941883]
[1646960752989,3.75,2572.1,2570.6,2.94110027]
[1646960753187,0.21435853,2572.0,2570.7,0.05604644]
[1646960753416,0.06266146,2571.9,2570.7,0.01767644]
[1646960753620,0.06266146,2571.9,2570.6,2.01671644]
[1646960753621,0.2528971,2571.8,2570.6,2.01671644]
[1646960753819,0.2528971,2571.8,2570.6,1.91204644]
[1646960754022,0.97726709,2571.5,2570.6,1.90616644]
[1646960754221,0.25,2571.4,2570.6,1.90616644]
[1646960754426,0.25,2571.4,2570.7,1.09416027]
[1646960754727,1.68839,2571.4,2570.6,0.19411632]
[1646960754924,3.6943,2571.3,2570.2,2.5]
[1646960755126,0.07281195,2571.2,2570.2,2.5]
[1646960755323,0.25,2571.0,2570.2,2.5]
[1646960755521,0.1945,2570.9,2570.2,2.5]
[1646960755722,0.25476381,2570.9,2570.2,2.5]
[1646960756523,5.02789381,2570.9,2570.2,2.5]
[1646960756724,0.05590107,2570.7,2570.2,2.5]
[1646960756931,0.1945,2570.6,2570.2,2.5]
[1646960757168,0.97349,2570.3,2569.2,0.07141267]
[1646960757568,2.1414504,2570.3,2569.4,0.93688134]
[1646960757769,0.97347,2570.3,2570.2,3.64910426]
[1646960758873,2.19694,2570.4,2570.2,3.64910426]
[1646960758874,0.25,2570.4,2570.2,3.64910426]
[1646960759482,0.25,2570.4,2570.2,3.64738857]
[1646960760074,0.2,2570.4,2570.2,3.64738857]
[1646960760936,0.25,2571.0,2570.4,0.3833]
[1646960761126,0.25,2571.0,2570.3,0.47463827]
[1646960761127,0.25,2571.0,2570.6,1.06346624]
[1646960761325,0.25,2571.0,2570.7,1.43461]
[1646960761526,0.0001,2571.0,2570.7,1.43461]
[1646960761727,0.0001,2571.0,2570.7,1.81791]
[1646960761926,0.25,2571.2,2570.7,4.81791]
[1646960762131,0.25,2571.2,2571.1,0.92968488]
[1646960762326,2.56875704,2571.6,2571.2,3.8]
[1646960762327,2.81875704,2571.6,2571.2,3.8]
[1646960762528,2.81875704,2571.6,2571.3,1.6]
[1646960762529,0.25005704,2571.6,2571.3,1.6]
[1646960762726,0.25005704,2571.6,2571.5,1.05587615]
[1646960762926,0.50005704,2571.6,2571.5,1.05587615]
[1646960763730,0.50005704,2571.6,2571.0,2.96296]
[1646960763926,0.50005704,2571.6,2571.1,0.97242]
[1646960764779,0.50005704,2571.6,2571.2,4.14564684]
[1646960764980,0.50005704,2571.6,2571.3,0.462]
[1646960765488,0.25,2571.6,2571.4,3.8]
[1646960765692,1.07287654,2572.2,2571.5,3.462]
[1646960765886,2.81875704,2572.0,2571.6,4.05511227]
[1646960766085,2.81875704,2572.0,2571.7,0.462]
[1646960766286,0.25,2572.0,2571.7,0.462]
[1646960766589,0.25,2572.7,2571.9,3.0]
[1646960766788,2.13839,2573.2,2573.0,0.97359087]
[1646960766987,0.25,2573.4,2573.0,0.97359087]
[1646960767390,0.25,2573.3,2573.0,0.97359087]
[1646960768188,0.00413207,2573.2,2573.0,0.97359087]
[1646960768421,0.00413207,2573.2,2573.1,3.8]
[1646960768624,0.25,2573.3,2573.2,1.6]
[1646960768822,0.0001,2573.3,2573.2,1.6]
[1646960769021,0.25,2573.5,2573.2,1.6]
[1646960769220,0.25,2573.5,2573.2,2.062]
[1646960769623,0.25,2573.5,2572.8,0.462]
[1646960769822,0.25,2573.5,2572.4,0.00096]
[1646960769823,0.2,2573.5,2572.4,0.00096]
[1646960770026,0.2,2573.5,2572.8,0.88440465]
[1646960770321,0.2,2573.5,2573.2,0.91388628]
[1646960771125,0.2,2573.5,2572.6,0.00096]
[1646960771329,0.25627435,2573.5,2572.5,0.462]
[1646960771628,0.02570649,2573.1,2572.5,0.462]
[1646960772175,3.63025184,2573.6,2572.5,2.7]
[1646960772376,3.63025184,2573.6,2572.5,0.00096]
[1646960772377,3.11091,2573.5,2572.5,0.00096]
[1646960772683,3.11091,2573.5,2572.1,0.00096]
[1646960772684,0.25,2573.2,2572.1,0.00096]
[1646960772878,0.05010377,2573.1,2572.1,0.00096]
[1646960773077,0.25174764,2573.0,2571.9,1.94516]
[1646960773276,0.25174764,2573.0,2572.0,0.97214]
[1646960773681,0.25174764,2573.0,2572.5,0.80988539]
[1646960773880,0.05744764,2573.0,2572.5,0.80988539]
[1646960774080,0.25,2573.2,2572.5,1.27188539]
[1646960774281,0.25,2573.2,2572.6,0.97195]
[1646960774481,0.25,2573.2,2572.2,2.91631]
[1646960774482,0.25,2573.2,2573.0,0.86039447]
[1646960775080,0.85036048,2572.6,2572.5,2.40572]
[1646960775284,0.85036048,2572.6,2572.5,3.50655157]
[1646960775481,0.85036048,2572.6,2572.5,3.4596936]
[1646960775679,0.25,2573.2,2572.6,3.8503]
[1646960775923,0.25,2573.2,2572.7,0.462]
[1646960776320,0.02624034,2573.1,2572.7,0.462]
[1646960776521,0.25,2573.9,2572.7,0.462]
[1646960776522,0.25,2573.3,2572.7,0.462]
[1646960776721,3.88748,2574.8,2572.7,0.462]
[1646960776722,0.01208725,2574.1,2573.0,2.3266]
[1646960776924,0.25,2574.0,2573.1,39.01028673]
[1646960777123,0.25,2574.0,2573.2,3.0]
[1646960777322,0.25,2574.0,2573.3,0.462]
[1646960777720,0.1694868,2574.0,2573.3,0.462]
[1646960777927,0.1942,2574.7,2574.5,0.91353217]
[1646960778128,1.94292,2574.8,2574.5,0.91353217]
[1646960778624,0.25,2574.8,2574.5,0.91353217]
[1646960779429,1.0,2575.8,2574.5,0.91353217]
[1646960779430,0.9710268,2576.4,2575.4,1.08213743]
[1646960779686,0.69883844,2576.7,2575.8,0.98569331]
[1646960779687,0.0311947,2576.7,2575.8,0.98569331]
[1646960779872,0.25,2576.1,2575.6,0.06876651]
[1646960780073,0.97093,2576.0,2575.6,0.06876651]
[1646960780273,0.25,2576.1,2575.0,0.46296]
[1646960780476,0.13490384,2575.5,2574.8,0.00096]
[1646960780672,0.38490384,2575.5,2574.7,0.07652251]
[1646960780875,0.38490384,2575.5,2574.9,1.06464675]
[1646960781074,0.38490384,2575.5,2575.0,0.07902636]
[1646960781275,0.38490384,2575.5,2575.3,0.99569883]
[1646960781478,0.25,2576.2,2575.4,3.88390441]
[1646960781678,0.0165464,2575.7,2575.5,0.55035801]
[1646960781880,0.0165464,2575.7,2575.6,0.08234405]
[1646960782075,0.0165464,2575.7,2575.6,0.54434405]
[1646960782474,1.94178,2576.5,2575.6,0.54434405]
[1646960782679,1.94178,2576.5,2575.7,0.07098541]
[1646960782877,0.00390118,2575.8,2575.7,0.07098541]
[1646960783526,0.00390118,2575.8,2575.7,0.53298541]
[1646960783723,0.04035806,2576.6,2575.7,1.4714996]
[1646960784024,0.04035806,2576.6,2576.4,0.94653122]
[1646960784224,0.04035806,2576.6,2576.4,1.03432714]
[1646960784426,5.806e-05,2576.6,2576.5,0.07180388]
[1646960784636,1.3,2578.0,2576.6,3.8]
[1646960784637,1.60182421,2577.4,2576.6,3.8]
[1646960784827,0.05434635,2577.7,2576.8,0.08321905]
[1646960785025,1.60170197,2577.6,2576.9,0.0837429]
[1646960785425,0.194,2578.0,2577.0,0.97026]
[1646960785630,0.194,2578.0,2577.2,0.89106664]
[1646960785631,0.04752837,2577.8,2577.2,0.89106664]
[1646960785827,0.1938,2577.7,2577.2,0.77605903]
[1646960786028,0.67391697,2577.0,2576.9,0.91610846]
[1646960786227,0.67391697,2577.0,2576.9,0.91706846]
[1646960786428,0.67391697,2577.0,2576.9,0.91610846]
[1646960787028,0.62391697,2577.0,2576.9,0.91610846]
[1646960787268,0.62391697,2577.0,2576.9,1.88640846]
[1646960789283,0.62391697,2577.0,2576.9,0.0837429]
[1646960789478,0.62391697,2577.0,2576.5,0.08032736]
[1646960790279,0.00392688,2576.9,2576.6,0.83186979]
[1646960790477,0.00392688,2576.9,2576.7,0.08123491]
[1646960791128,0.62391697,2577.0,2576.7,0.462]
[1646960791328,0.62391697,2577.0,2576.8,1.0440725]
[1646960791329,0.00392686,2576.9,2576.8,1.0440725]
[1646960792328,0.62391697,2577.0,2576.8,0.97026]
[1646960792529,0.62784381,2577.0,2576.9,0.07543899]
[1646960793329,0.62784381,2577.0,2576.8,0.97026]
[1646960793534,0.62391697,2577.0,2576.8,0.97026]
[1646960793733,2.965e-05,2577.1,2576.9,6.8]
[1646960793937,5.955e-05,2577.1,2577.0,1.0471209]
[1646960794138,0.01571625,2577.5,2577.1,2.56993]
[1646960794338,0.01571625,2577.5,2577.2,0.53729919]
[1646960794535,0.01571625,2577.5,2577.3,0.07658538]
[1646960794777,0.06610794,2578.6,2577.4,0.462]
[1646960794778,0.1938,2578.5,2577.4,0.462]
[1646960795176,0.1938,2578.5,2577.4,0.96525615]
[1646960795376,0.0124771,2578.4,2577.1,1.6]
[1646960795576,0.96216152,2577.0,2576.5,0.06972855]
[1646960795980,0.96216152,2577.0,2576.6,0.462]
[1646960796182,0.96216152,2577.0,2576.7,0.08090341]
[1646960796380,0.96216152,2577.0,2576.9,1.94051]
[1646960796583,0.05197873,2577.6,2576.9,5.35565203]
[1646960796783,0.00301047,2577.9,2577.0,0.07843068]
[1646960796979,0.00301047,2577.9,2577.4,1.09457483]
[1646960797179,0.1938,2578.5,2578.2,1.06636459]
[1646960797381,0.61618662,2577.8,2577.5,1.22790018]
[1646960797783,0.1938,2578.3,2577.7,3.8]
[1646960797988,0.1938,2578.5,2577.9,0.40089829]
[1646960798184,0.02289328,2578.6,2578.0,0.462]
[1646960798419,0.02289328,2578.6,2578.1,0.08590992]
[1646960798726,0.02289328,2578.6,2578.3,1.1007741]
[1646960799019,0.02289328,2578.6,2578.4,0.07253842]
[1646960799219,0.02289328,2578.6,2578.5,0.96975]
[1646960799820,0.02289328,2578.6,2578.4,1.07253842]
[1646960800019,0.02289328,2578.6,2578.0,0.08860056]
[1646960800220,0.02289328,2578.6,2578.0,0.462]
[1646960800620,0.02509048,2578.6,2578.0,0.462]
[1646960801027,0.00301078,2578.4,2578.1,0.85295431]
[1646960801428,0.00301078,2578.4,2578.1,0.85123862]
[1646960801825,0.02509048,2578.6,2578.1,0.85123862]
[1646960802274,0.00415215,2578.4,2578.1,0.85123862]
[1646960803173,0.02509048,2578.6,2578.1,1.82114862]
[1646960803375,0.00415215,2578.4,2578.1,1.82114862]
[1646960803779,0.00415215,2578.4,2578.1,0.85123862]
[1646960804175,0.13964873,2578.9,2578.1,0.85123862]
[1646960804575,0.13964873,2578.9,2577.8,0.00096]
[1646960804576,0.00415215,2578.4,2577.8,0.00096]
[1646960804776,0.00415215,2578.4,2577.6,0.00096]
[1646960804975,0.00415215,2578.4,2577.5,0.00384831]
[1646960805176,0.1938,2578.3,2577.5,0.00384831]
[1646960805574,0.1938,2578.3,2577.4,1.02063313]
[1646960806226,0.9703129,2577.9,2577.4,1.02063313]
[1646960806431,0.05129767,2577.8,2577.4,1.02063313]
[1646960806826,0.05129767,2577.8,2577.4,0.90562552]
[1646960807630,0.04342888,2577.9,2577.1,2.40244]
[1646960807830,0.00219198,2578.5,2577.8,0.81625087]
[1646960808230,0.04566896,2578.5,2577.8,0.81625087]
[1646960808431,0.05283674,2578.4,2577.8,0.81625087]
[1646960808630,0.0442404,2578.3,2577.8,0.81625087]
[1646960809033,0.00219198,2578.5,2577.8,0.81625087]
[1646960809531,0.04420178,2578.5,2577.8,0.81625087]
[1646960809774,0.04420178,2578.5,2577.6,0.00096]
[1646960809775,0.4332481,2577.7,2577.6,0.00096]
[1646960810076,0.4332481,2577.7,2577.6,0.81827332]
[1646960810473,0.4332481,2577.7,2577.5,0.33871541]
[1646960810673,0.4332481,2577.7,2577.6,1.02697858]
[1646960813183,0.4332481,2577.7,2577.5,0.00389594]
[1646960814018,0.4332481,2577.7,2577.1,1.94043]
[1646960814222,0.4332481,2577.7,2577.5,0.00389602]
[1646960815021,0.4332481,2577.7,2577.3,1.19407621]
[1646960815220,0.4332481,2577.7,2577.4,1.11698465]
[1646960815426,0.4332481,2577.7,2577.5,0.00345771]
[1646960815624,0.4332481,2577.7,2577.5,0.97360771]
[1646960816237,0.4332481,2577.7,2577.5,0.00345771]
[1646960816426,0.4332481,2577.7,2577.4,1.11698465]